fUSD/lending_fUSD_20251212
["ID","MTS","AMOUNT","RATE_DAILY","PERIOD"]
[398350295,1765548631745,-477.50618194,0.000169,2]
[398350296,1765548631757,-569.31587421,0.000169,2]
[398350297,1765548631770,-1100.7542825,0.000169,2]
[398350298,1765548631798,-890.02592447,0.000169,2]
[398350299,1765548631812,-847.97823547,0.000169,2]
[398350300,1765548631835,-70803.29157704,0.000169,2]
[398350301,1765548631846,-657.85661962,0.000169,2]
[398350302,1765548631858,-716.52268336,0.000169,2]
[398350303,1765548631873,-408.2574532,0.000169,2]
[398350304,1765548631884,-323.3292545,0.000169,2]
[398350305,1765548631903,-1032.28714969,0.000169,2]
[398350350,1765548637789,-500.0,0.00016899,2]
[398350351,1765548637803,-208.21915453,0.00016899,2]
[398350352,1765548637813,-323.31738577,0.00016899,2]
[398350353,1765548637823,-500.0,0.00016899,2]
[398350354,1765548637833,-500.0,0.00016899,2]
[398350355,1765548637843,-500.0,0.00016899,2]
[398350356,1765548637852,-500.0,0.00016899,2]
[398350357,1765548637862,-500.0,0.00016899,2]
[398350358,1765548637872,-500.0,0.00016899,2]
[398350359,1765548637882,-500.0,0.00016899,2]
[398350360,1765548637891,-500.0,0.00016899,2]
[398350361,1765548637901,-500.0,0.00016899,2]
[398350362,1765548637910,-500.0,0.00016899,2]
[398350363,1765548637920,-500.0,0.00016899,2]
[398350364,1765548637930,-500.0,0.00016899,2]
[398350365,1765548637939,-500.0,0.00016899,2]
[398350366,1765548637948,-500.0,0.00016899,2]
[398350367,1765548637957,-500.0,0.00016899,2]
[398350368,1765548637967,-500.0,0.00016899,2]
[398350369,1765548637976,-500.0,0.00016899,2]
[398350370,1765548637986,-500.0,0.00016899,2]
[398350371,1765548637999,-500.0,0.00016899,2]
[398350372,1765548638011,-500.0,0.00016899,2]
[398350374,1765548638021,-500.0,0.00016899,2]
[398350376,1765548638030,-500.0,0.00016899,2]
[398350378,1765548638040,-500.0,0.00016899,2]
[398350380,1765548638049,-500.0,0.00016899,2]
[398350381,1765548638058,-500.0,0.00016899,2]
[398350384,1765548638068,-500.0,0.00016899,2]
[398350385,1765548638078,-500.0,0.00016899,2]
[398350388,1765548638087,-500.0,0.00016899,2]
[398350390,1765548638097,-500.0,0.00016899,2]
[398350392,1765548638107,-500.0,0.00016899,2]
[398350393,1765548638116,-500.0,0.00016899,2]
[398350395,1765548638126,-500.0,0.00016899,2]
[398350397,1765548638135,-500.0,0.00016899,2]
[398350398,1765548638145,-500.0,0.00016899,2]
[398350399,1765548638154,-500.0,0.00016899,2]
[398350400,1765548638164,-500.0,0.00016899,2]
[398350401,1765548638173,-500.0,0.00016899,2]
[398350402,1765548638183,-500.0,0.00016899,2]
[398350403,1765548638196,-500.0,0.00016899,2]
[398350404,1765548638206,-500.0,0.00016899,2]
[398350405,1765548638215,-500.0,0.00016899,2]
[398350406,1765548638225,-500.0,0.00016899,2]
[398350407,1765548638234,-500.0,0.00016899,2]
[398350408,1765548638244,-500.0,0.00016899,2]
[398350409,1765548638254,-500.0,0.00016899,2]
[398350410,1765548638263,-500.0,0.00016899,2]
[398350411,1765548638273,-500.0,0.00016899,2]
[398350412,1765548638283,-500.0,0.00016899,2]
[398350413,1765548638293,-500.0,0.00016899,2]
[398350414,1765548638302,-472.86397989,0.00016899,2]
[398350415,1765548638312,-500.0,0.00016899,2]
[398350416,1765548638323,-500.0,0.00016899,2]
[398350417,1765548638332,-500.0,0.00016899,2]
[398350418,1765548638342,-500.0,0.00016899,2]
[398350419,1765548638352,-500.0,0.00016899,2]
[398350420,1765548638362,-175.68363026,0.00016899,2]
[398350421,1765548638372,-500.0,0.00016899,2]
[398350422,1765548638382,-500.0,0.00016899,2]
[398350423,1765548638393,-500.0,0.00016899,2]
[398350424,1765548638403,-500.0,0.00016899,2]
[398350425,1765548638413,-500.0,0.00016899,2]
[398350426,1765548638422,-500.0,0.00016899,2]
[398350427,1765548638432,-500.0,0.00016899,2]
[398350428,1765548638443,-500.0,0.00016899,2]
[398350429,1765548638453,-500.0,0.00016899,2]
[398350430,1765548638462,-500.0,0.00016899,2]
[398350431,1765548638472,-500.0,0.00016899,2]
[398350432,1765548638482,-500.0,0.00016899,2]
[398350433,1765548638491,-500.0,0.00016899,2]
[398350434,1765548638501,-500.0,0.00016899,2]
[398350435,1765548638511,-500.0,0.00016899,2]
[398350436,1765548638520,-679222.75831355,0.000169,2]
[398350437,1765548638530,-9779.90651586,0.00016945,2]
[398350438,1765548638540,-556.03,0.00016955,2]
[398350439,1765548638550,-5008.80812878,0.00016956,5]
[398350440,1765548638560,-235.6589,0.00016956,2]
[398350441,1765548638570,-78822.2803,0.00016956,2]
[398350442,1765548638580,-2500.0,0.00016956,2]
[398350443,1765548638594,-159.186,0.00016956,2]
[398350444,1765548638604,-444.292,0.00016956,2]
[398350445,1765548638614,-32329.15725767,0.00017,2]
[398350446,1765548638624,-599.0,0.00017045,2]
[398350447,1765548638634,-309.0,0.00017045,2]
[398350448,1765548638646,-9779.90651578,0.00017051,2]
[398350449,1765548638660,-500.0,0.00017055,2]
[398350450,1765548638671,-500.0,0.00017055,2]
[398350451,1765548638683,-500.0,0.00017055,2]
[398350452,1765548638693,-500.0,0.00017055,2]
[398350453,1765548638702,-500.0,0.00017055,2]
[398350454,1765548638712,-500.0,0.00017055,2]
[398350455,1765548638722,-500.0,0.00017055,2]
[398350456,1765548638732,-599.0,0.000171,2]
[398350457,1765548638742,-599.0,0.00017155,2]
[398350458,1765548638751,-1000.0,0.00017156,2]
[398350459,1765548638762,-9779.90651578,0.00017157,2]
[398350460,1765548638772,-599.0,0.0001721,2]
[398350461,1765548638790,-556.03,0.00017228,2]
[398350462,1765548638803,-200.0,0.00017244,2]
[398350463,1765548638813,-500.0,0.00017255,2]
[398350464,1765548638823,-500.0,0.00017255,2]
[398350465,1765548638832,-500.0,0.00017255,2]
[398350466,1765548638842,-9779.90651578,0.00017263,2]
[398350467,1765548638851,-599.0,0.00017265,2]
[398350468,1765548638862,-2000.0,0.000173,2]
[398350469,1765548638872,-9779.90651578,0.00017369,2]
[398350470,1765548638883,-9779.90651578,0.00017476,2]
[398350471,1765548638893,-151.0,0.00017476,2]
[398350472,1765548638903,-556.03,0.00017502,2]
[398350473,1765548638914,-4321.1857308,0.00017545,2]
[398350474,1765548638924,-4075.1715675,0.00017545,2]
[398350475,1765548638935,-168.0,0.00017559,2]
[398350476,1765548638945,-9779.90651578,0.00017582,2]
[398350477,1765548638955,-9779.90651578,0.00017688,2]
[398350478,1765548638965,-556.03,0.00017776,2]
[398350479,1765548638975,-9779.90651578,0.00017794,2]
[398350480,1765548638986,-17158.74404271,0.0001783,2]
[398350481,1765548638996,-151.0,0.0001783,2]
[398350482,1765548639006,-9779.90651578,0.000179,2]
[398350483,1765548639016,-639.98295046,0.000179,2]
[398350484,1765548639027,-150.0,0.00017909,2]
[398350485,1765548639038,-185.01608608,0.00017909,2]
[398350486,1765548639049,-150.0,0.00017909,2]
[398350487,1765548639060,-500.0,0.00017909,2]
[398350488,1765548639071,-150.0,0.00017909,2]
[398350489,1765548639081,-500.0,0.00017909,2]
[398350490,1765548639091,-181.99870091,0.0001799,2]
[398350491,1765548639102,-181.99870091,0.0001799,2]
[398350492,1765548639111,-300.0,0.00017999,2]
[398350493,1765548639121,-257.12,0.00017999,2]
[398350494,1765548639131,-1000.0,0.00017999,2]
[398350495,1765548639143,-500.0,0.00017999,2]
[398350496,1765548639152,-500.0,0.00017999,2]
[398350497,1765548639162,-511.41874804,0.00017999,2]
[398350498,1765548639172,-500.0,0.00017999,2]
[398350499,1765548639188,-500.0,0.00017999,2]
[398350500,1765548639199,-1573.0,0.00018,2]
[398350501,1765548639211,-145290.31045823,0.00018,2]
[398350502,1765548639257,-500.0,0.00016899,2]
[398350503,1765548639271,-500.0,0.00016899,2]
[398350504,1765548639281,-4381.06928883,0.00018,2]
[398350505,1765548639292,-2576.0915,0.00018,2]
[398350506,1765548639311,-7389.36454677,0.00018,2]
[398350509,1765548639849,-151.0,0.00017476,2]
[398350510,1765548639858,-5236.41052318,0.00018,2]
[398350511,1765548640127,-2540.5043997,0.00018,2]
[398350512,1765548640243,-413.22446657,0.00018,2]
[398350513,1765548640254,-506.37642362,0.00018,2]
[398350514,1765548640265,-685.34203747,0.00018,2]
[398350518,1765548640775,-5536.33249366,0.00018,2]
[398350519,1765548640795,-23872.8047668,0.00018,2]
[398350526,1765548643813,-4122.76392,0.00018,2]
[398350527,1765548643825,-2233.86777777,0.00018,2]
[398350528,1765548643836,-595.98172297,0.00018,2]
[398350532,1765548645710,-506.13216482,0.00018,2]
[398350533,1765548645770,-1235.93486426,0.00018,2]
[398350534,1765548645998,-688132.28524104,0.00018,2]
[398350539,1765548704026,2693.89,0.00016438,2]
[398350540,1765548897332,854.82,0.00024658,30]
[398350541,1765548933838,1462.36,0.00016613,2]
[398350542,1765548938619,250.0,0.00016613,2]
[398350545,1765549138015,173.9979446,0.00016777,2]
[398350546,1765549246372,325.85777343,0.00016799,2]
[398350547,1765549249082,2500.0,0.00016756,2]
[398350548,1765549293369,673.365,0.00016519,2]
[398350549,1765549355002,1600.0,0.00016587,2]
[398350550,1765549356338,1600.0,0.0002488,120]
[398350552,1765549487650,999.0,0.00016441,3]
[398350553,1765549517787,398.24,0.0001644,2]
[398350555,1765549652885,-1000.0,0.0001685,2]
[398350556,1765549658264,8999.33114267,0.00025,30]
[398350557,1765549692383,150.0,0.00016329,2]
[398350558,1765549716328,5043.91977323,0.00016,4]
[398350559,1765549716355,3674.54921745,0.00016,4]
[398350560,1765549716536,3674.54921745,0.00016,4]
[398350561,1765549716559,3674.54921745,0.00016,4]
[398350562,1765549716581,3674.54921745,0.00016,4]
[398350563,1765549716609,3674.54921745,0.00016,4]
[398350564,1765549716633,3674.54921745,0.00016,4]
[398350565,1765549716658,3674.54921745,0.00016,4]
[398350566,1765549716681,3674.54921745,0.00016,4]
[398350567,1765549716704,3674.54921745,0.00016,4]
[398350568,1765549716726,3674.54921745,0.00016,4]
[398350588,1765549832155,-151.0,0.00015997,2]
[398350589,1765549832165,-300.0,0.00015999,2]
[398350591,1765549832174,-300.0,0.00015999,2]
[398350593,1765549832184,-1200.0,0.00015999,2]
[398350595,1765549832194,-300.0,0.00015999,2]
[398350596,1765549832203,-500.0,0.00015999,2]
[398350598,1765549832214,-244.50830995,0.00015999,2]
[398350600,1765549832224,-57219.78731315,0.00016,4]
[398350604,1765549832249,-841.29844284,0.00016,4]
[398350612,1765549832361,-1013.08682692,0.00016,4]
[398350613,1765549832372,-2258.37083201,0.00016,4]
[398350614,1765549837957,-550.57360598,0.00015999,2]
[398350615,1765549837967,-500.0,0.00015999,2]
[398350616,1765549837977,-500.0,0.00015999,2]
[398350617,1765549837986,-500.0,0.00015999,2]
[398350618,1765549837996,-500.0,0.00015999,2]
[398350619,1765549838005,-500.0,0.00015999,2]
[398350620,1765549838015,-500.0,0.00015999,2]
[398350621,1765549838025,-500.0,0.00015999,2]
[398350622,1765549838035,-500.0,0.00015999,2]
[398350623,1765549838045,-500.0,0.00015999,2]
[398350624,1765549838054,-500.0,0.00015999,2]
[398350625,1765549838064,-500.0,0.00015999,2]
[398350626,1765549838074,-489.47846037,0.00015999,2]
[398350627,1765549838084,-500.0,0.00015999,2]
[398350628,1765549838094,-500.0,0.00015999,2]
[398350629,1765549838103,-500.0,0.00015999,2]
[398350630,1765549838113,-500.0,0.00015999,2]
[398350631,1765549838124,-180353.73635486,0.00016,4]
[398350632,1765549838133,-329.3294736,0.0001634,2]
[398350633,1765549838147,-659.86988484,0.00016438,2]
[398350634,1765549838157,-659.86988484,0.00016438,2]
[398350635,1765549838166,-659.86988484,0.00016438,2]
[398350636,1765549838176,-659.86988484,0.00016438,2]
[398350637,1765549838187,-659.86988484,0.00016438,2]
[398350638,1765549838196,-659.86988484,0.00016438,2]
[398350639,1765549838206,-659.86988484,0.00016438,2]
[398350640,1765549838217,-659.86988484,0.00016438,2]
[398350641,1765549838227,-659.86988484,0.00016438,2]
[398350642,1765549838237,-659.86988484,0.00016438,2]
[398350643,1765549838247,-659.86988484,0.00016438,2]
[398350644,1765549838257,-659.86988484,0.00016438,2]
[398350645,1765549838267,-659.86988484,0.00016438,2]
[398350646,1765549838278,-659.86988484,0.00016438,2]
[398350647,1765549838288,-659.86988484,0.00016438,2]
[398350648,1765549838298,-659.86988484,0.00016438,2]
[398350649,1765549838308,-659.86988484,0.00016438,2]
[398350650,1765549838318,-659.86988484,0.00016438,2]
[398350651,1765549838327,-659.86988484,0.00016438,2]
[398350652,1765549838337,-659.86988484,0.00016438,2]
[398350653,1765549838350,-659.86988484,0.00016438,2]
[398350654,1765549838360,-659.86988484,0.00016438,2]
[398350655,1765549838370,-659.86988484,0.00016438,2]
[398350656,1765549838380,-659.86988484,0.00016438,2]
[398350657,1765549838390,-659.86988484,0.00016438,2]
[398350680,1765549838814,-659.86988484,0.00016438,2]
[398350681,1765549838825,-659.86988484,0.00016438,2]
[398350682,1765549838836,-659.86988484,0.00016438,2]
[398350683,1765549838849,-659.86988484,0.00016438,2]
[398350684,1765549838859,-659.86988484,0.00016438,2]
[398350685,1765549838869,-659.86988484,0.00016438,2]
[398350686,1765549838880,-659.86988484,0.00016438,2]
[398350687,1765549838890,-659.86988484,0.00016438,2]
[398350688,1765549838900,-659.86988484,0.00016438,2]
[398350689,1765549838911,-659.86988484,0.00016438,2]
[398350690,1765549838921,-659.86988484,0.00016438,2]
[398350691,1765549838931,-659.86988484,0.00016438,2]
[398350692,1765549838941,-659.86988484,0.00016438,2]
[398350693,1765549838952,-659.86988484,0.00016438,2]
[398350694,1765549838962,-659.86988484,0.00016438,2]
[398350695,1765549838972,-659.86988484,0.00016438,2]
[398350696,1765549838985,-659.86988484,0.00016438,2]
[398350697,1765549838996,-659.86988484,0.00016438,2]
[398350698,1765549839006,-659.86988484,0.00016438,2]
[398350699,1765549839017,-659.86988484,0.00016438,2]
[398350700,1765549839027,-659.86988484,0.00016438,2]
[398350701,1765549839037,-659.86988484,0.00016438,2]
[398350702,1765549839047,-659.86988484,0.00016438,2]
[398350703,1765549839057,-659.86988484,0.00016438,2]
[398350704,1765549839068,-659.86988484,0.00016438,2]
[398350705,1765549839078,-659.86988484,0.00016438,2]
[398350706,1765549839090,-659.86988484,0.00016438,2]
[398350707,1765549839103,-659.86988484,0.00016438,2]
[398350708,1765549839113,-659.86988484,0.00016438,2]
[398350709,1765549839123,-659.86988484,0.00016438,2]
[398350710,1765549839133,-1000.0,0.0001644,3]
[398350711,1765549839143,-217.23851562,0.00016753,2]
[398350712,1765549839157,-86383.1528087,0.00016755,2]
[398350713,1765549839170,-478.37891291,0.00016755,2]
[398350714,1765549839186,-3821.61716989,0.00016755,2]
[398350715,1765549839215,-476.81295156,0.00016755,2]
[398350716,1765549839227,-351.88118535,0.00016755,2]
[398350717,1765549839300,-805.62639675,0.00016755,2]
[398350718,1765549839326,-1449.6465707,0.00016755,2]
[398350721,1765549840275,-596.298,0.00016755,2]
[398350722,1765549840287,-460.45,0.00016755,2]
[398350762,1765549842984,-834.84277497,0.00016755,2]
[398350767,1765549843044,-561.29189786,0.00016755,2]
[398350768,1765549843056,-1292.21190686,0.00016755,2]
[398350769,1765549843067,-1573.13458229,0.00016755,2]
[398350770,1765549843078,-1650.68809694,0.00016755,2]
[398350771,1765549843090,-916.73474021,0.00016755,2]
[398350772,1765549843103,-877.07771091,0.00016755,2]
[398350773,1765549843114,-656.42984484,0.00016755,2]
[398350774,1765549843126,-480.14190281,0.00016755,2]
[398350775,1765549843148,-656333.58254645,0.00016755,2]
[398350776,1765549843159,-444.82,0.00016854,2]
[398350777,1765549843169,-500.0,0.00016855,2]
[398350778,1765549843178,-500.0,0.00016855,2]
[398350779,1765549843187,-500.0,0.00016855,2]
[398350780,1765549843196,-500.0,0.00016855,2]
[398350781,1765549843206,-500.0,0.00016855,2]
[398350782,1765549843215,-500.0,0.00016855,2]
[398350783,1765549843225,-500.0,0.00016855,2]
[398350784,1765549843235,-500.0,0.00016855,2]
[398350785,1765549843244,-565.51210135,0.00016855,2]
[398350786,1765549843253,-151.0,0.00016882,2]
[398350787,1765549843263,-151.0,0.00016928,2]
[398350788,1765549843272,-951.60693659,0.00016951,2]
[398351034,1765549846403,-151.0,0.00016858,2]
[398351037,1765549846413,-48.39306341,0.00016951,2]
[398351039,1765549846422,-1000.0,0.00016955,3]
[398351041,1765549846432,-151.0,0.00016972,2]
[398351043,1765549846449,-168.0,0.00016977,2]
[398351045,1765549846458,-174.78532559,0.00017,2]
[398351063,1765549846622,-986.89522002,0.00017,2]
[398351655,1765550419994,-280.0,0.00015592,2]
[398351656,1765550420017,-81.07814363,0.00015592,2]
[398353817,1765550659853,-85.58185637,0.00015592,2]
[398353818,1765550659875,-283.06120495,0.00015756,2]
[398354416,1765550756295,293.06,0.00013699,2]
[398354419,1765551021637,-227.08952111,0.00015656,2]
[398354420,1765551024783,-219.0,0.00015656,2]
[398354434,1765551032203,-53.91047889,0.00015656,2]
[398354435,1765551032214,-163.02,0.00015919,2]
[398354436,1765551032224,-166.66,0.00015921,2]
[398354437,1765551032235,-1000.0,0.00015999,3]
[398354438,1765551032245,-150.0,0.00016101,2]
[398354439,1765551032255,-150.0,0.00016101,2]
[398354440,1765551032265,-150.0,0.00016101,2]
[398354441,1765551032275,-166.66,0.00016249,2]
[398354442,1765551032286,-1200.0,0.00016396,2]
[398354443,1765551032296,-5497.53,0.00016397,2]
[398354444,1765551032306,-329.32947362,0.00016477,2]
[398354445,1765551032317,-329.3294736,0.00016517,2]
[398354446,1765551032327,-329.3294736,0.00016556,2]
[398354447,1765551032338,-166.66,0.00016577,2]
[398354448,1765551032348,-300.0,0.00016651,2]
[398354449,1765551032358,-300.0,0.00016651,2]
[398354450,1765551032369,-151.0,0.00016652,2]
[398354451,1765551032379,-151.0,0.00016652,2]
[398354452,1765551032393,-1200.0,0.00016653,2]
[398354453,1765551032405,-441.92,0.00016654,2]
[398354454,1765551032416,-521.15581696,0.00016654,2]
[398354455,1765551032427,-500.0,0.00016654,2]
[398354456,1765551032438,-500.0,0.00016654,2]
[398354457,1765551032450,-500.0,0.00016654,2]
[398354458,1765551032462,-500.0,0.00016654,2]
[398354459,1765551032473,-500.0,0.00016654,2]
[398354460,1765551032483,-500.0,0.00016654,2]
[398354461,1765551032493,-500.0,0.00016654,2]
[398354462,1765551032503,-443.27538448,0.00016654,2]
[398354463,1765551032513,-500.0,0.00016654,2]
[398354465,1765551032523,-500.0,0.00016654,2]
[398354467,1765551032533,-500.0,0.00016654,2]
[398354469,1765551032543,-500.0,0.00016654,2]
[398354471,1765551032553,-500.0,0.00016654,2]
[398354473,1765551032563,-500.0,0.00016654,2]
[398354474,1765551032573,-500.0,0.00016654,2]
[398354476,1765551032585,-500.0,0.00016654,2]
[398354478,1765551032595,-500.0,0.00016654,2]
[398354480,1765551032606,-500.0,0.00016654,2]
[398354482,1765551032616,-500.0,0.00016654,2]
[398354484,1765551032626,-500.0,0.00016654,2]
[398354486,1765551032638,-500.0,0.00016654,2]
[398354488,1765551032648,-500.0,0.00016654,2]
[398354490,1765551032658,-500.0,0.00016654,2]
[398354492,1765551032668,-500.0,0.00016654,2]
[398354494,1765551032678,-500.0,0.00016654,2]
[398354496,1765551032689,-500.0,0.00016654,2]
[398354498,1765551032703,-500.0,0.00016654,2]
[398354500,1765551032713,-500.0,0.00016654,2]
[398354501,1765551032722,-500.0,0.00016654,2]
[398354503,1765551032732,-500.0,0.00016654,2]
[398354505,1765551032742,-150.52860442,0.00016654,2]
[398354507,1765551032752,-500.0,0.00016654,2]
[398354509,1765551032762,-500.0,0.00016654,2]
[398354511,1765551032772,-500.0,0.00016654,2]
[398354512,1765551032782,-500.0,0.00016654,2]
[398354513,1765551032792,-500.0,0.00016654,2]
[398354514,1765551032801,-500.0,0.00016654,2]
[398354515,1765551032811,-500.0,0.00016654,2]
[398354516,1765551032820,-500.0,0.00016654,2]
[398354517,1765551032830,-500.0,0.00016654,2]
[398354518,1765551032839,-500.0,0.00016654,2]
[398354519,1765551032849,-500.0,0.00016654,2]
[398354520,1765551032858,-500.0,0.00016654,2]
[398354521,1765551032868,-500.0,0.00016654,2]
[398354522,1765551032877,-500.0,0.00016654,2]
[398354523,1765551032889,-500.0,0.00016654,2]
[398354524,1765551032899,-500.0,0.00016654,2]
[398354525,1765551032909,-500.0,0.00016654,2]
[398354526,1765551032918,-500.0,0.00016654,2]
[398354527,1765551032928,-500.0,0.00016654,2]
[398354528,1765551032938,-500.0,0.00016654,2]
[398354529,1765551032947,-500.0,0.00016654,2]
[398354530,1765551032956,-500.0,0.00016654,2]
[398354531,1765551032965,-615.05286044,0.00016654,2]
[398354532,1765551032975,-500.0,0.00016654,2]
[398354533,1765551032984,-500.0,0.00016654,2]
[398354534,1765551032994,-500.0,0.00016654,2]
[398354535,1765551033004,-500.0,0.00016654,2]
[398354536,1765551033014,-500.0,0.00016654,2]
[398354537,1765551033023,-500.0,0.00016654,2]
[398354538,1765551033033,-500.0,0.00016654,2]
[398354539,1765551033043,-500.0,0.00016654,2]
[398354540,1765551033053,-11723.4982869,0.00016655,2]
[398354541,1765551033094,-1795.22834089,0.00016655,2]
[398354542,1765551033105,-705.17575911,0.00016655,2]
[398354544,1765551038060,-259.72,0.00016655,2]
[398354545,1765551038072,-987.18610805,0.00016655,2]
[398354546,1765551038218,-12281.14934682,0.00016655,2]
[398354547,1765551038230,-1120.43290127,0.00016655,2]
[398354548,1765551038242,-10992.39539457,0.00016655,2]
[398354549,1765551038257,-12407.07940039,0.00016655,2]
[398354550,1765551038269,-2254.83934015,0.00016655,2]
[398354551,1765551038281,-4141.776292,0.00016655,2]
[398354552,1765551038293,-619.3089963,0.00016655,2]
[398354553,1765551038304,-7477.4,0.00016655,2]
[398354554,1765551038325,-499.98868071,0.00016655,2]
[398354555,1765551038336,-783.7022747,0.00016655,2]
[398354556,1765551038348,-1583.72641874,0.00016655,2]
[398354566,1765551040152,-8816.88488096,0.00016655,2]
[398354567,1765551040207,-81640.48713625,0.00016655,2]
[398354568,1765551040575,-4314.1106964,0.00016655,2]
[398354569,1765551040593,-1153.4125,0.00016655,2]
[398354571,1765551040605,-885.211677,0.00016655,2]
[398354572,1765551040678,-282.51293064,0.00016655,2]
[398354573,1765551040689,-3238.63291285,0.00016655,2]
[398354574,1765551040700,-509.845208,0.00016655,2]
[398354575,1765551040713,-1831.44,0.00016655,2]
[398354576,1765551040725,-492983.44706515,0.00016655,2]
[398354577,1765551043153,-509.07,0.00016655,2]
[398354578,1765551043186,-27686.00946409,0.00016655,2]
[398354580,1765551044782,-1517.04840807,0.00016655,2]
[398354581,1765551044796,-854.55749319,0.00016655,2]
[398354582,1765551044971,-496.3283867,0.00016655,2]
[398354585,1765551046520,-277.03149022,0.00016655,2]
[398355378,1765551325909,201.0,0.00025,120]
[398355379,1765551455981,807.33,0.00024658,30]
[398358091,1765551647084,1250.09986372,0.00025,30]
[398358283,1765551815183,-164.82065278,0.00015781,2]
[398358286,1765551975281,4539.85641367,1.655e-05,2]
[398358287,1765551995008,-511.49152709,0.00015702,2]
[398358288,1765552000239,-269.50847291,0.00015702,2]
[398358290,1765552114870,-166.66,0.00015662,2]
[398358291,1765552212398,-1333.34,0.00015662,2]
[398358292,1765552212419,-200.0,0.0001569,2]
[398358293,1765552212441,-85.17934722,0.00015781,2]
[398358294,1765552212464,-189.7176,0.00015897,2]
[398358295,1765552212487,-1000.0,0.00015998,3]
[398358380,1765552233636,-889.25305166,0.00016078,2]
[398358381,1765552233672,-479.76138834,0.00016078,2]
[398358382,1765552233682,-200.0,0.00016159,2]
[398358383,1765552233691,-189.06448687,0.000162,2]
[398358384,1765552233699,-150.0,0.000162,2]
[398358385,1765552233708,-161.19359454,0.000162,2]
[398358386,1765552233718,-150.0,0.000162,2]
[398358387,1765552233728,-1174.13730854,0.00016378,2]
[398358388,1765552233737,-1200.0,0.00016406,2]
[398358389,1765552233746,-1341.0,0.00016407,2]
[398358390,1765552233756,-300.0,0.00016427,2]
[398358391,1765552233765,-376.0,0.00016428,2]
[398358392,1765552233775,-1200.0,0.00016437,2]
[398358393,1765552233784,-3664.73,0.00016438,2]
[398358394,1765552233793,-603.46,0.00016438,2]
[398358395,1765552233802,-12107.55749826,0.0001648,2]
[398358396,1765552233811,-254.20263874,0.0001648,2]
[398358397,1765552233830,-5650.00766563,0.00016499,2]
[398358398,1765552233843,-217.2385156,0.00016545,2]
[398358399,1765552233854,-550.0,0.00016553,2]
[398358400,1765552233864,-500.0,0.00016554,2]
[398358401,1765552233874,-500.0,0.00016554,2]
[398358402,1765552233884,-268.31999539,0.00016554,2]
[398358403,1765552233893,-456.27311356,0.00016554,2]
[398358404,1765552233903,-220.6164188,0.00016554,2]
[398358405,1765552233913,-500.0,0.00016554,2]
[398358406,1765552233923,-500.0,0.00016554,2]
[398358407,1765552233932,-500.0,0.00016554,2]
[398358408,1765552233943,-500.0,0.00016554,2]
[398358409,1765552233953,-500.0,0.00016554,2]
[398358410,1765552233963,-311.50528604,0.00016554,2]
[398358411,1765552233973,-101980.5471508,0.00016555,2]
[398358412,1765552233985,-2395.10067356,0.00016555,2]
[398358413,1765552233996,-443.85675088,0.00016555,2]
[398358414,1765552234008,-61363.21645563,0.00016555,2]
[398358415,1765552234064,-1051.5652764,0.00016555,2]
[398358417,1765552238448,-804.96302795,0.00016555,2]
[398358418,1765552238463,-34295.03202031,0.00016555,2]
[398358419,1765552238476,-340.00534089,0.00016555,2]
[398358420,1765552238654,-907.14,0.00016555,2]
[398358421,1765552238767,-1586.66,0.00016555,2]
[398358482,1765552240503,-432.1469887,0.00016555,2]
[398358483,1765552240515,-1583.06796825,0.00016555,2]